Workbook

Sheet Presupuesto de Ejecución
B1: CONCEPTO | C1: REFERENCIA | D1: UD | E1: P/UD | F1: PRECIO | G1: TOTAL
B2: PRESUPUESTO TOTAL | G2: =SUM(G3:G115) -> 49,173.40 €
A3: 1 | B3: ETAP ARRIARAN | G3: =SUM(F4:F8) -> 4,283.56 €
B4: Router 4G SIG ETIC TELECOM, incluido kit antena | C4: ETIC SIG EC-400 4G | D4: 1 | E4: 1,413.56 € | F4: =E4*D4 -> 1,413.56 €
B5: PLC S7-1214C/1215/1217 E/S integradas/ Schneider M251 | C5: 214-1AG40-0XB0 | D5: 1 | E5: 520.00 € | F5: 520.00 €
B6: M. obra instalación y conexionado, inc montaje mural | C6: M.O. | D6: 1 | E6: 500.00 € | F6: 500.00 €
B7: Programación PLC y SCADA, P.E.M. PLC local y CCV, pruebas taller y emplazamiento | C7: M.O. | D7: 1 | E7: 1,450.00 € | F7: 1,450.00 €
B8: Programación comunicaciones router 4G | C8: M.O. | D8: 1 | E8: 400.00 € | F8: =E8*D8 -> 400.00 €
A9: 2 | B9: CLORADORA GENERAL | G9: =SUM(F10:F21) -> 5,852.48 €
B10: CRNG puerta ciega con placa montaje, patas de pared 700x500x250 | C10: NSYCRNG | D10: 1 | E10: 400.00 € | F10: =E10*D10 -> 400.00 €
B11: Router 4G IPL-E ETIC TELECOM, incluido kit antena techo y mounting kit | C11: ETIC IPL-C-100-LW | D11: 1 | E11: 684.72 € | F11: 684.72 €
B12: PLC S7-1214C/1215/1217 E/S integradas/ Schneider M251 | C12: 214-1AG40-0XB0 | D12: 1 | E12: 520.00 € | F12: 520.00 €
B13: Módulo de 1 S.A., SB 1232 / Schneider | C13: 6ES72324HA300XB0 | D13: 1 | E13: 200.00 € | F13: 200.00 €
B14: Interruptores automático magnetotérmicos iC60N calibre necesario | C14: IC60N | D14: 4 | E14: 15.00 € | F14: 60.00 €
B15: SITOP UPS1600/DC/DC24V/10A conmutación | C15: 6EP4134-3AB00-0AY0 | D15: 1 | E15: 333.60 € | F15: 333.60 €
B16: SITOP UPS1100 SAI 24V 5Ah LiFePO | C16: 6EP4133-0GB00-0AY0 | D16: 2 | E16: 122.08 € | F16: 244.16 €
B17: SITOP PSU6200 24V/10A - Fuente de alimentación DC | C17: 6EP3334-7SB00-3AX0 | D17: 1 | E17: 210.00 € | F17: 210.00 €
B18: Interruptor magnético RS PRO, contacto detección puerta, NA 500mA 50mm | C18: RS PRO N.A. 500mA | D18: 1 | E18: 100.00 € | F18: 100.00 €
B19: M. obra identificación mangueras, montaje y conexionado en campo, inc portes | C19: M.O. | D19: 1 | E19: 1,250.00 € | F19: 1,250.00 €
B20: Programación PLC y SCADA, P.E.M. PLC local y CCV, pruebas taller y emplazamiento | C20: M.O. | D20: 1 | E20: 1,450.00 € | F20: 1,450.00 €
B21: Programación comunicaciones router 4G | C21: M.O. | D21: 1 | E21: 400.00 € | F21: 400.00 €
A22: 3 | B22: AIA | G22: =SUM(F23:F33) -> 4,842.48 €
B23: Router 4G IPL-E ETIC TELECOM, incluido kit antena | C23: ETIC IPL-C-100-LW | D23: 1 | E23: 684.72 € | F23: =E23*D23 -> 684.72 €
B24: PLC S7-1214C/1215/1217 E/S integradas/ Schneider M251 | C24: 214-1AG40-0XB0 | D24: 1 | E24: 520.00 € | F24: =E24*D24 -> 520.00 €
B25: Módulo de E.A. SM 1231, 4 EA, 0-20 mA / Schneider | C25: 6ES7231-4HD32- 0XB0 | D25: 1 | E25: 300.00 € | F25: 300.00 €
B26: SITOP UPS1600/DC/DC24V/10A conmutación | C26: 6EP4134-3AB00-0AY0 | D26: 1 | E26: 333.60 € | F26: 333.60 €
B27: SITOP UPS1100 SAI 24V 5Ah LiFePO | C27: 6EP4133-0GB00-0AY0 | D27: 2 | E27: 122.08 € | F27: 244.16 €
B28: SITOP PSU6200 24V/10A - Fuente de alimentación DC | C28: 6EP3334-7SB00-3AX0 | D28: 1 | E28: 210.00 € | F28: 210.00 €
B29: Servicios auxiliares: caldeo, enchufe interior, cableados internos. | C29: Aux. | D29: 1 | E29: 100.00 € | F29: 100.00 €
B30: Material auxiliar: bornas, canaleta, bloques de contactos, distribuidores 24V | C30: Aux. | D30: 1 | E30: 100.00 € | F30: 100.00 €
B31: M. obra identificación mangueras, montaje y conexionado en campo, inc portes | C31: M.O. | D31: 1 | E31: 500.00 € | F31: 500.00 €
B32: Programación PLC y SCADA, P.E.M. PLC local y CCV, pruebas taller y emplazamiento | C32: M.O. | D32: 1 | E32: 1,450.00 € | F32: 1,450.00 €
B33: Programación comunicaciones router 4G | C33: M.O. | D33: 1 | E33: 400.00 € | F33: 400.00 €
A34: 4 | B34: HILERRI | G34: =SUM(F35:F46) -> 5,042.48 €
B35: Router 4G IPL-E ETIC TELECOM, incluido kit antena | C35: ETIC IPL-C-100-LW | D35: 1 | E35: 684.72 € | F35: =E35*D35 -> 684.72 €
B36: PLC S7-1214C/1215/1217 E/S integradas/ Schneider M251 | C36: 214-1AG40-0XB0 | D36: 1 | E36: 520.00 € | F36: =E36*D36 -> 520.00 €
B37: Módulo de E.A. SM 1231, 4 EA, 0-20 mA / Schneider | C37: 6ES7231-4HD32- 0XB0 | D37: 1 | E37: 300.00 € | F37: 300.00 €
B38: Switch Siemens CSM 1277/equivalente | C38: 6GK7277-1AA10-0AA0 | D38: 1 | E38: 200.00 € | F38: 200.00 €
B39: SITOP UPS1600/DC/DC24V/10A conmutación | C39: 6EP4134-3AB00-0AY0 | D39: 1 | E39: 333.60 € | F39: 333.60 €
B40: SITOP UPS1100 SAI 24V 5Ah LiFePO | C40: 6EP4133-0GB00-0AY0 | D40: 2 | E40: 122.08 € | F40: 244.16 €
B41: SITOP PSU6200 24V/10A - Fuente de alimentación DC | C41: 6EP3334-7SB00-3AX0 | D41: 1 | E41: 210.00 € | F41: 210.00 €
B42: Servicios auxiliares: caldeo, enchufe interior, cableados internos. | C42: Aux. | D42: 1 | E42: 100.00 € | F42: 100.00 €
B43: Material auxiliar: bornas, canaleta, bloques de contactos, distribuidores 24V | C43: Aux. | D43: 1 | E43: 100.00 € | F43: 100.00 €
B44: M. obra identificación mangueras, montaje y conexionado en campo, inc portes | C44: M.O. | D44: 1 | E44: 500.00 € | F44: 500.00 €
B45: Programación PLC y SCADA, P.E.M. PLC local y CCV, pruebas taller y emplazamiento | C45: M.O. | D45: 1 | E45: 1,450.00 € | F45: 1,450.00 €
B46: Programación comunicaciones router 4G | C46: M.O. | D46: 1 | E46: 400.00 € | F46: 400.00 €
A47: 5 | B47: URKILLAGA | G47: =SUM(F48:F58) -> 4,842.48 €
B48: Router 4G IPL-E ETIC TELECOM, incluido kit antena | C48: ETIC IPL-C-100-LW | D48: 1 | E48: 684.72 € | F48: =E48*D48 -> 684.72 €
B49: PLC S7-1214C/1215/1217 E/S integradas/ Schneider M251 | C49: 214-1AG40-0XB0 | D49: 1 | E49: 520.00 € | F49: =E49*D49 -> 520.00 €
B50: Módulo de E.A. SM 1231, 4 EA, 0-20 mA / Schneider | C50: 6ES7231-4HD32- 0XB0 | D50: 1 | E50: 300.00 € | F50: 300.00 €
B51: SITOP UPS1600/DC/DC24V/10A conmutación | C51: 6EP4134-3AB00-0AY0 | D51: 1 | E51: 333.60 € | F51: 333.60 €
B52: SITOP UPS1100 SAI 24V 5Ah LiFePO | C52: 6EP4133-0GB00-0AY0 | D52: 2 | E52: 122.08 € | F52: 244.16 €
B53: SITOP PSU6200 24V/10A - Fuente de alimentación DC | C53: 6EP3334-7SB00-3AX0 | D53: 1 | E53: 210.00 € | F53: 210.00 €
B54: Servicios auxiliares: caldeo, enchufe interior, cableados internos. | C54: Aux. | D54: 1 | E54: 100.00 € | F54: 100.00 €
B55: Material auxiliar: bornas, canaleta, bloques de contactos, distribuidores 24V | C55: Aux. | D55: 1 | E55: 100.00 € | F55: 100.00 €
B56: M. obra identificación mangueras, montaje y conexionado en campo, inc portes | C56: M.O. | D56: 1 | E56: 500.00 € | F56: 500.00 €
B57: Programación PLC y SCADA, P.E.M. PLC local y CCV, pruebas taller y emplazamiento | C57: M.O. | D57: 1 | E57: 1,450.00 € | F57: 1,450.00 €
B58: Programación comunicaciones router 4G | C58: M.O. | D58: 1 | E58: 400.00 € | F58: 400.00 €
A59: 6 | B59: ERGOIENA | G59: =SUM(F60:F75) -> 6,382.48 €
B60: CRNG puerta ciega con placa montaje, patas de pared 700x500x250 | C60: NSYCRNG | D60: 1 | E60: 400.00 € | F60: =E60*D60 -> 400.00 €
B61: Router 4G IPL-E ETIC TELECOM, incluido kit antena | C61: ETIC IPL-C-100-LW | D61: 1 | E61: 684.72 € | F61: =E61*D61 -> 684.72 €
B62: PLC S7-1214C/1215/1217 E/S integradas/ Schneider M251 | C62: 214-1AG40-0XB0 | D62: 1 | E62: 520.00 € | F62: 520.00 €
B63: Módulo de E.A. SM 1231, 4 EA, 0-20 mA / Schneider | C63: 6ES7231-4HD32- 0XB0 | D63: 1 | E63: 300.00 € | F63: 300.00 €
B64: Módulo de 1 S.A., SB 1232 / Schneider | C64: 6ES72324HA300XB0 | D64: 1 | E64: 200.00 € | F64: 200.00 €
B65: Selector luminoso verde 2 posiciones SCHNEIDER | C65: ZB4BK1233 | D65: 1 | E65: 30.00 € | F65: 30.00 €
B66: Interruptores automático magnetotérmicos iC60N calibre necesario | C66: IC60N | D66: 4 | E66: 15.00 € | F66: 60.00 €
B67: SITOP UPS1600/DC/DC24V/10A conmutación | C67: 6EP4134-3AB00-0AY0 | D67: 1 | E67: 333.60 € | F67: 333.60 €
B68: SITOP UPS1100 SAI 24V 5Ah LiFePO | C68: 6EP4133-0GB00-0AY0 | D68: 2 | E68: 122.08 € | F68: 244.16 €
B69: SITOP PSU6200 24V/10A - Fuente de alimentación DC | C69: 6EP3334-7SB00-3AX0 | D69: 1 | E69: 210.00 € | F69: 210.00 €
B70: Servicios auxiliares: caldeo, enchufe interior, cableados internos. | C70: Aux. | D70: 1 | E70: 100.00 € | F70: 100.00 €
B71: Material auxiliar: bornas, canaleta, cableados internos, bloques de contactos | C71: Aux. | D71: 1 | E71: 100.00 € | F71: 100.00 €
B72: Interruptor magnético RS PRO, contacto detección puerta, NA 500mA 50mm | C72: RS PRO N.A. 500mA | D72: 1 | E72: 100.00 € | F72: 100.00 €
B73: M. obra identificación mangueras, montaje y conexionado en campo, inc portes | C73: M.O. | D73: 1 | E73: 1,250.00 € | F73: 1,250.00 €
B74: Programación PLC y SCADA, P.E.M. PLC local y CCV, pruebas taller y emplazamiento | C74: M.O. | D74: 1 | E74: 1,450.00 € | F74: 1,450.00 €
B75: Programación comunicaciones router 4G | C75: M.O. | D75: 1 | E75: 400.00 € | F75: 400.00 €
A76: 7 | B76: SAN GREGORIO | G76: =SUM(F77:F90) -> 6,292.48 €
B77: CRNG puerta ciega con placa montaje, patas de pared 700x500x250 | C77: NSYCRNG | D77: 1 | E77: 400.00 € | F77: 400.00 €
B78: Router 4G IPL-E ETIC TELECOM, incluido kit antena | C78: ETIC IPL-C-100-LW | D78: 1 | E78: 684.72 € | F78: =E78*D78 -> 684.72 €
B79: PLC S7-1214C/1215/1217 E/S integradas/ Schneider M251 | C79: 214-1AG40-0XB0 | D79: 1 | E79: 520.00 € | F79: 520.00 €
B80: Módulo de E.A. SM 1231, 4 EA, 0-20 mA / Schneider | C80: 6ES7231-4HD32- 0XB0 | D80: 1 | E80: 300.00 € | F80: 300.00 €
B81: Módulo de 1 S.A., SB 1232 / Schneider | C81: 6ES72324HA300XB0 | D81: 1 | E81: 200.00 € | F81: 200.00 €
B82: SITOP UPS1600/DC/DC24V/10A conmutación | C82: 6EP4134-3AB00-0AY0 | D82: 1 | E82: 333.60 € | F82: 333.60 €
B83: SITOP UPS1100 SAI 24V 5Ah LiFePO | C83: 6EP4133-0GB00-0AY0 | D83: 2 | E83: 122.08 € | F83: 244.16 €
B84: SITOP PSU6200 24V/10A - Fuente de alimentación DC | C84: 6EP3334-7SB00-3AX0 | D84: 1 | E84: 210.00 € | F84: 210.00 €
B85: Servicios auxiliares: caldeo, enchufe interior, cableados internos | C85: Aux. | D85: 1 | E85: 100.00 € | F85: 100.00 €
B86: Material auxiliar: bornas, canaleta, bloques de contactos, distribuidores 24V | C86: Aux. | D86: 1 | E86: 100.00 € | F86: 100.00 €
B87: Interruptor magnético RS PRO, contacto detección puerta, NA 500mA 50mm | C87: RS PRO N.A. 500mA | D87: 1 | E87: 100.00 € | F87: 100.00 €
B88: M. obra identificación mangueras, montaje y conexionado en campo, inc portes | C88: M.O. | D88: 1 | E88: 1,250.00 € | F88: 1,250.00 €
B89: Programación PLC y SCADA, P.E.M. PLC local y CCV, pruebas taller y emplazamiento | C89: M.O. | D89: 1 | E89: 1,450.00 € | F89: 1,450.00 €
B90: Programación comunicaciones router 4G | C90: M.O. | D90: 1 | E90: 400.00 € | F90: 400.00 €
A91: 8 | B91: SAN MARTIN | G91: =SUM(F92:F102) -> 4,842.48 €
B92: Router 4G IPL-E ETIC TELECOM, incluido kit antena | C92: ETIC IPL-C-100-LW | D92: 1 | E92: 684.72 € | F92: =E92*D92 -> 684.72 €
B93: PLC S7-1214C/1215/1217 E/S integradas/ Schneider M251 | C93: 214-1AG40-0XB0 | D93: 1 | E93: 520.00 € | F93: =E93*D93 -> 520.00 €
B94: Módulo de E.A. SM 1231, 4 EA, 0-20 mA / Schneider | C94: 6ES7231-4HD32- 0XB0 | D94: 1 | E94: 300.00 € | F94: 300.00 €
B95: SITOP UPS1600/DC/DC24V/10A conmutación | C95: 6EP4134-3AB00-0AY0 | D95: 1 | E95: 333.60 € | F95: 333.60 €
B96: SITOP UPS1100 SAI 24V 5Ah LiFePO | C96: 6EP4133-0GB00-0AY0 | D96: 2 | E96: 122.08 € | F96: 244.16 €
B97: SITOP PSU6200 24V/10A - Fuente de alimentación DC | C97: 6EP3334-7SB00-3AX0 | D97: 1 | E97: 210.00 € | F97: 210.00 €
B98: Servicios auxiliares: caldeo, enchufe interior, cableados internos | C98: Aux. | D98: 1 | E98: 100.00 € | F98: 100.00 €
B99: Material auxiliar: bornas, canaleta, bloques de contactos, distribuidores 24V | C99: Aux. | D99: 1 | E99: 100.00 € | F99: 100.00 €
B100: M. obra identificación mangueras, montaje y conexionado en campo, inc portes | C100: M.O. | D100: 1 | E100: 500.00 € | F100: 500.00 €
B101: Programación PLC y SCADA, P.E.M. PLC local y CCV, pruebas taller y emplazamiento | C101: M.O. | D101: 1 | E101: 1,450.00 € | F101: 1,450.00 €
B102: Programación comunicaciones router 4G | C102: M.O. | D102: 1 | E102: 400.00 € | F102: 400.00 €
A103: 9 | B103: AIA-ITURRIETA | G103: =SUM(F104:F113) -> 4,542.48 €
B104: Router 4G IPL-E ETIC TELECOM, incluido kit antena | C104: ETIC IPL-C-100-LW | D104: 1 | E104: 684.72 € | F104: =E104*D104 -> 684.72 €
B105: PLC S7-1214C/1215/1217 E/S integradas/ Schneider M251 | C105: 214-1AG40-0XB0 | D105: 1 | E105: 520.00 € | F105: =E105*D105 -> 520.00 €
B106: SITOP UPS1600/DC/DC24V/10A conmutación | C106: 6EP4134-3AB00-0AY0 | D106: 1 | E106: 333.60 € | F106: 333.60 €
B107: SITOP BAT1600 SAI 24V 7,5Ah LiFePO4 | C107: 6EP4137-3AB00-2AY0 | D107: 2 | E107: 122.08 € | F107: 244.16 €
B108: SITOP PSU6200 24V/10A - Fuente de alimentación DC | C108: 6EP3334-7SB00-3AX0 | D108: 1 | E108: 210.00 € | F108: 210.00 €
B109: Servicios auxiliares: caldeo, enchufe interior, cableados internos | C109: Aux. | D109: 1 | E109: 100.00 € | F109: 100.00 €
B110: Material auxiliar: bornas, canaleta, bloques de contactos, distribuidores 24V | C110: Aux. | D110: 1 | E110: 100.00 € | F110: 100.00 €
B111: M. obra identificación mangueras, montaje y conexionado en campo, inc portes | C111: M.O. | D111: 1 | E111: 500.00 € | F111: 500.00 €
B112: Programación PLC y SCADA, P.E.M. PLC local y CCV, pruebas taller y emplazamiento | C112: M.O. | D112: 1 | E112: 1,450.00 € | F112: 1,450.00 €
B113: Programación comunicaciones router 4G | C113: M.O. | D113: 1 | E113: 400.00 € | F113: 400.00 €
A114: 10 | B114: DOCUMENTACIÓN AS-BUILT | G114: =F115 -> 2,250.00 €
B115: Actualiz. planos EPLAN, fichas, certificados gestión residuos, según memoria. | C115: M.O. | D115: 9 | E115: 250.00 € | F115: =E115*D115 -> 2,250.00 €

Sheet Resumen
A2: Etiquetas de fila | B2: Suma de UD
A3: Actualiz. planos EPLAN, fichas, certificados gestión residuos, según memoria. | B3: 1.00
A4: AIA
A5: AIA-ITURRIETA
A6: CLORADORA GENERAL
A7: CRNG puerta ciega con placa montaje, patas de pared 700x500x250 | B7: 1.00
A8: DOCUMENTACIÓN AS-BUILT
A9: ETAP ARRIARAN
A10: HILERRI
A11: Interruptor magnético RS PRO, contacto detección puerta, NA 500mA 50mm | B11: 1.00
A12: Interruptores automático magnetotérmicos iC60N calibre necesario | B12: 4.00
A13: M. obra identificación mangueras, montaje y conexionado en campo, inc portes | B13: 5.00
A14: M. obra instalación y conexionado, inc montaje mural | B14: 1.00
A15: Material auxiliar: bornas, canaleta, bloques de contactos, distribuidores 24V | B15: 5.00
A16: Módulo de 1 S.A., SB 1232 / equivalente Schneider | B16: 1.00
A17: Módulo de E.A. SM 1231, 4 EA, 0-20 mA / equivalente Schneider | B17: 5.00
A18: Módulo de E.D. SM 1221, 8 DI, DC 24V / equivalente Schneider | B18: 5.00
A19: PLC S7-1200, E/S integradas: 14 ED 24V DC+10 SD ; 10V DC 2 AI/ Schneider | B19: 7.00
A20: PRESUPUESTO TOTAL
A21: Programación comunicaciones router 4G | B21: 7.00
A22: Programación pantalla HMI | B22: 1.00
A23: Programación pantallas SCADA dosificación Cloro según memoria. | B23: 1.00
A24: Programación PLC y SCADA, P.E.M. PLC local, pruebas en taller y emplazamiento | B24: 6.00
A25: Router 4G IPL-E ETIC TELECOM, incluido kit antena | B25: 6.00
A26: Router 4G SIG ETIC TELECOM, incluido kit antena | B26: 1.00
A27: SAN MARTIN
A28: Servicios auxiliares: caldeo, enchufe interior, cableados internos | B28: 1.00
A29: Servicios auxiliares: caldeo, enchufe interior, cableados internos. | B29: 4.00
A30: SIMATIC HMI, KTP400 BASIC, BASIC PANEL. | B30: 1.00
A31: SITOP PSU6200 24V/10A - Fuente de alimentación DC | B31: 6.00
A32: SITOP UPS1100 SAI 24V 5Ah LiFePO | B32: 11.00
A33: SITOP UPS1600/DC/DC24V/10A conmutación con ETHERNET | B33: 6.00
A34: URKILLAGA
A35: Switch Siemens CSM 1277/equivalente | B35: 6.00
A36: Total general | B36: 93.00
